bitfinex/quotes_BTCUSD_20251217
["timestamp","ask_amount","ask_price","bid_price","bid_amount"]
[1765971667523,0.001,87064.0,87057.0,0.00161287]
[1765971667723,0.001,87064.0,87058.0,0.02463276]
[1765971668121,0.001,87064.0,87057.0,0.00161287]
[1765971668872,0.01077401,87065.0,87057.0,0.00161287]
[1765971669034,0.01077401,87064.0,87057.0,0.00161287]
[1765971669261,0.01077401,87063.0,87057.0,0.00161287]
[1765971669582,0.01077401,87062.0,87057.0,0.00161287]
[1765971669879,0.01077401,87061.0,87057.0,0.00161287]
[1765971670061,0.01077401,87060.0,87057.0,0.00161287]
[1765971670258,0.01077401,87059.0,87057.0,0.00161287]
[1765971670463,0.2907,87069.0,87058.0,0.02463976]
[1765971670665,0.2907,87065.0,87057.0,0.00161287]
[1765971670864,0.010776,87064.0,87058.0,0.02463939]
[1765971671069,0.010776,87063.0,87057.0,0.00161287]
[1765971671243,0.010776,87062.0,87058.0,0.02464058]
[1765971671424,0.010776,87061.0,87057.0,0.00161287]
[1765971671630,0.010776,87060.0,87058.0,0.02464099]
[1765971671834,0.010776,87059.0,87057.0,0.00161287]
[1765971672082,0.2907,87063.0,87058.0,0.024641]
[1765971672296,0.01077691,87062.0,87059.0,0.024641]
[1765971672535,0.01077691,87061.0,87057.0,0.00161287]
[1765971672737,0.01077691,87060.0,87058.0,0.02464292]
[1765971672942,0.001,87065.0,87057.0,0.00161287]
[1765971672943,0.2907,87063.0,87059.0,0.02464292]
[1765971673088,0.01077785,87062.0,87057.0,0.00161287]
[1765971673428,0.01077785,87061.0,87057.0,0.00161287]
[1765971673657,0.01077785,87060.0,87057.0,0.00161287]
[1765971673868,0.01077785,87059.0,87057.0,0.00161287]
[1765971674070,0.2907,87067.0,87058.0,0.02464538]
[1765971674285,0.2907,87065.0,87057.0,0.00161287]
[1765971674498,0.2907,87063.0,87058.0,0.02464737]
[1765971674672,0.01077874,87062.0,87057.0,0.00161287]
[1765971674854,0.01077874,87062.0,87058.0,0.02464791]
[1765971675028,0.01077874,87062.0,87059.0,0.02464791]
[1765971675235,0.01077874,87062.0,87057.0,0.00161287]
[1765971675435,0.01077874,87062.0,87058.0,0.02464931]
[1765971675659,0.01077874,87061.0,87059.0,0.02464931]
[1765971675859,0.01077874,87060.0,87057.0,0.00161287]
[1765971676116,0.01077874,87059.0,87058.0,0.02464862]
[1765971676292,2.0,87067.0,87058.0,0.02464862]
[1765971676502,0.2907,87064.0,87059.0,0.02464862]
[1765971676659,0.01077874,87063.0,87057.0,0.00161287]
[1765971676863,0.01077874,87063.0,87058.0,0.02465061]
[1765971677071,0.01077874,87063.0,87059.0,0.02465061]
[1765971677279,0.01077874,87063.0,87057.0,0.01816]
[1765971677484,0.01077874,87063.0,87058.0,0.02465262]
[1765971677684,0.01077874,87062.0,87059.0,0.02465262]
[1765971677887,0.01077874,87061.0,87057.0,0.01816]
[1765971678089,0.01077874,87060.0,87058.0,0.02465266]
[1765971678295,0.2907,87067.0,87059.0,0.02465266]
[1765971678503,0.2907,87062.0,87057.0,0.01816]
[1765971678716,0.01078235,87061.0,87058.0,0.0246558]
[1765971678938,0.01078235,87061.0,87059.0,0.0246558]
[1765971679145,0.01078235,87061.0,87057.0,0.01816]
[1765971679370,0.01078235,87061.0,87058.0,0.02465803]
[1765971679574,0.01078235,87061.0,87059.0,0.02465803]
[1765971679786,0.01078235,87061.0,87060.0,0.02465803]
[1765971680018,0.2907,87063.0,87054.0,0.01816]
[1765971680220,0.2907,87063.0,87055.0,0.02465825]
[1765971680221,0.01078235,87062.0,87055.0,0.02465825]
[1765971680420,0.01078235,87062.0,87056.0,0.02465825]
[1765971680631,0.01078235,87062.0,87057.0,0.02465825]
[1765971680850,0.01078235,87062.0,87058.0,0.02465825]
[1765971681052,0.01078235,87062.0,87059.0,0.02465825]
[1765971681286,0.01078235,87062.0,87060.0,0.02465825]
[1765971681505,0.01078235,87061.0,87054.0,0.01816]
[1765971681718,0.01078235,87060.0,87055.0,0.02467033]
[1765971681989,0.01078235,87059.0,87056.0,0.02467033]
[1765971682162,0.01078235,87058.0,87057.0,0.02467033]
[1765971682360,0.2907,87065.0,87057.0,0.02467033]
[1765971682590,0.2907,87063.0,87058.0,0.02467033]
[1765971682789,0.2907,87063.0,87059.0,0.02467033]
[1765971682790,0.01078235,87062.0,87059.0,0.02467033]
[1765971683136,0.01078235,87062.0,87060.0,0.02467033]
[1765971683333,0.01078235,87062.0,87061.0,0.02467033]
[1765971683768,0.01078235,87073.0,87061.0,0.02467033]
[1765971683976,0.2907,87069.0,87062.0,0.02467441]
[1765971684192,0.2907,87067.0,87063.0,0.02467724]
[1765971684392,0.2907,87063.0,87056.0,0.06224287]
[1765971684603,0.01078235,87062.0,87057.0,0.02467666]
[1765971684816,0.01078235,87062.0,87059.0,0.04091]
[1765971685026,0.01078235,87062.0,87060.0,0.02467666]
[1765971685234,0.01078235,87062.0,87061.0,0.02467666]
[1765971685659,0.01078235,87068.0,87061.0,0.02467666]
[1765971685866,0.2907,87065.0,87062.0,0.02467666]
[1765971686098,0.2907,87063.0,87057.0,0.00161287]
[1765971686316,0.01078235,87062.0,87058.0,0.02467755]
[1765971686520,0.01078235,87062.0,87059.0,0.02467755]
[1765971686739,0.01078235,87062.0,87060.0,0.02467755]
[1765971686962,0.01078235,87062.0,87061.0,0.02467755]
[1765971687379,0.01078235,87069.0,87061.0,0.02467755]
[1765971687650,2.0,87067.0,87062.0,0.02467755]
[1765971687859,0.2907,87064.0,87063.0,0.02467755]
[1765971688068,2.30148235,87064.0,87063.0,0.02467755]
[1765971689107,0.2907,87062.0,87057.0,0.00161287]
[1765971689316,0.01078235,87061.0,87058.0,0.02467935]
[1765971689533,0.01078235,87061.0,87059.0,0.02467935]
[1765971689734,0.01078235,87061.0,87060.0,0.02467935]
[1765971690347,0.01078235,87068.0,87060.0,0.02467935]
[1765971690550,0.2907,87065.0,87061.0,0.02467935]
[1765971690732,0.2907,87065.0,87057.0,0.00161287]
[1765971690733,0.2907,87063.0,87062.0,0.02467935]
[1765971690914,0.30148235,87063.0,87062.0,0.02467935]
[1765971691776,0.01078235,87063.0,87062.0,0.02467935]
[1765971692138,0.2907,87065.0,87062.0,0.02467935]
[1765971692340,2.30148235,87064.0,87063.0,0.02467935]
[1765971693771,2.41694313,87064.0,87063.0,0.02467935]
[1765971694056,0.2907,87061.0,87052.0,0.03075062]
[1765971694272,0.2907,87059.0,87053.0,0.0428402]
[1765971694491,2.0,87056.0,87054.0,0.0246802]
[1765971694737,0.01078235,87055.0,87052.0,0.01816]
[1765971694923,0.01078235,87054.0,87053.0,0.02468171]
[1765971695148,2.0,87057.0,87053.0,0.02468171]
[1765971695398,2.0,87055.0,87054.0,0.02468171]
[1765971695606,2.01078235,87055.0,87054.0,0.02468171]
[1765971695815,0.01078235,87055.0,87054.0,0.02468171]
[1765971696128,0.01078235,87058.0,87054.0,0.02468171]
[1765971696339,2.0,87057.0,87055.0,0.02467976]
[1765971696564,2.2907,87057.0,87056.0,0.02467976]
[1765971696771,2.0,87054.0,87049.0,5.18e-05]
[1765971696976,0.01078833,87053.0,87049.0,5.18e-05]
[1765971697180,2.0,87052.0,87049.0,5.18e-05]
[1765971697389,0.01078833,87051.0,87049.0,5.18e-05]
[1765971697595,0.01078833,87050.0,87049.0,5.18e-05]
[1765971697733,0.01568067,87055.0,87049.0,5.18e-05]
[1765971698043,0.30307274,87059.0,87049.0,5.18e-05]
[1765971698044,2.0,87053.0,87049.0,5.18e-05]
[1765971698277,2.0,87051.0,87049.0,5.18e-05]
[1765971698456,0.01078833,87050.0,87049.0,5.18e-05]
[1765971698962,2.2907,87054.0,87053.0,0.06251]
[1765971699192,2.30148506,87054.0,87053.0,0.02535]
[1765971699402,2.30148506,87054.0,87050.0,0.03716]
[1765971699403,2.0,87053.0,87050.0,0.03716]
[1765971699604,0.01078506,87052.0,87050.0,0.03716]
[1765971699811,0.01078506,87051.0,87049.0,0.02119467]
[1765971700016,0.2907,87067.0,87051.0,0.03716]
[1765971700218,0.2907,87063.0,87051.0,0.03716]
[1765971700440,2.0,87054.0,87051.0,0.03716]
[1765971700662,2.0,87052.0,87050.0,0.33525248]
[1765971700861,0.01078364,87051.0,87049.0,0.00166467]
[1765971701033,0.01078364,87050.0,87049.0,0.00166467]
[1765971701335,2.0,87054.0,87049.0,0.00166467]
[1765971701551,2.0,87052.0,87049.0,0.00166467]
[1765971701759,0.01078299,87051.0,87049.0,0.00166467]
[1765971701955,0.00489234,87061.0,87049.0,0.00166467]
[1765971702174,0.2907,87057.0,87049.0,0.00166467]
[1765971702395,0.58525248,87070.0,87049.0,0.00166467]
[1765971702396,2.2907,87055.0,87054.0,0.02535]
[1765971702564,2.30148299,87055.0,87054.0,0.02535]
[1765971703180,2.41694377,87055.0,87054.0,0.02535]
[1765971703383,2.0,87054.0,87050.0,0.03716]
[1765971703587,2.0,87052.0,87050.0,0.03716]
[1765971703754,2.0,87054.0,87049.0,0.00166467]
[1765971703958,0.01078203,87053.0,87052.0,0.02535]
[1765971704218,2.0,87063.0,87052.0,0.02535]
[1765971704425,0.2907,87065.0,87052.0,0.00161287]
[1765971704426,0.2907,87060.0,87052.0,0.00161287]
[1765971704636,2.0,87057.0,87052.0,0.03877287]
[1765971704846,0.30148203,87056.0,87055.0,0.08204]
[1765971705481,0.30148203,87056.0,87055.0,0.01953]
[1765971706019,0.01078203,87056.0,87055.0,0.01953]
[1765971706431,0.01078203,87056.0,87052.0,0.03877287]
[1765971706630,0.01078203,87055.0,87052.0,0.03877287]
[1765971706852,0.01078203,87054.0,87052.0,0.03877287]
[1765971707083,0.2907,87066.0,87052.0,0.03877287]
[1765971707283,2.0,87063.0,87052.0,0.03877287]
[1765971707488,0.2907,87060.0,87052.0,0.03877287]
[1765971707691,0.2907,87056.0,87052.0,0.03877287]
[1765971707848,0.01078144,87055.0,87052.0,0.03877287]
[1765971708286,0.01078144,87055.0,87054.0,0.06251]
[1765971708465,0.2907,87056.0,87055.0,0.08204]
[1765971708668,0.30148128,87056.0,87055.0,0.08204]
[1765971709352,0.01078128,87056.0,87055.0,0.08365287]
[1765971709554,0.2907,87061.0,87060.0,0.06251]
[1765971709751,2.30148133,87061.0,87060.0,0.06251]
[1765971709971,2.41694211,87061.0,87055.0,0.02114287]
[1765971710177,0.2907,87059.0,87056.0,0.03716]
[1765971710503,0.01078133,87058.0,87056.0,0.03716]
[1765971711708,0.01078133,87058.0,87055.0,0.02114287]
[1765971711917,0.01078133,87057.0,87055.0,0.02114287]
[1765971712095,0.01078133,87056.0,87055.0,0.02114287]
[1765971712288,0.2907,87063.0,87055.0,0.02114287]
[1765971712491,0.2907,87059.0,87055.0,0.02114287]
[1765971712711,0.01078133,87058.0,87055.0,0.02114287]
[1765971713343,0.01078133,87058.0,87055.0,0.00161287]
[1765971714059,0.01078133,87057.0,87055.0,0.00161287]
[1765971714234,0.01078133,87056.0,87055.0,0.00161287]
[1765971714441,0.2907,87064.0,87055.0,0.00161287]
[1765971714601,0.2907,87061.0,87055.0,0.00161287]
[1765971714806,0.2907,87059.0,87055.0,0.00161287]
[1765971715010,0.01078133,87058.0,87055.0,0.00161287]
[1765971716304,0.01078133,87057.0,87055.0,0.00161287]
[1765971716512,0.01078133,87056.0,87055.0,0.00161287]
[1765971717344,0.2907,87061.0,87055.0,0.00161287]
[1765971717544,2.0,87059.0,87055.0,0.00161287]
[1765971717742,0.01078133,87058.0,87055.0,0.00161287]
[1765971717996,0.01078133,87057.0,87055.0,0.00161287]
[1765971718174,2.0,87067.0,87055.0,0.00161287]
[1765971718408,0.2907,87064.0,87055.0,0.00161287]
[1765971718603,0.2907,87061.0,87055.0,0.00161287]
[1765971718808,0.2907,87059.0,87055.0,0.00161287]
[1765971719080,0.01078133,87058.0,87055.0,0.00161287]
[1765971719493,0.01078133,87058.0,87049.0,5.18e-05]
[1765971719494,0.2907,87054.0,87049.0,5.18e-05]
[1765971719692,0.2907,87050.0,87049.0,5.18e-05]
[1765971719992,0.30148133,87050.0,87049.0,5.18e-05]
[1765971721070,0.01078133,87050.0,87049.0,0.0010518]
[1765971721282,0.2907,87056.0,87049.0,0.0010518]
[1765971721504,0.2907,87053.0,87049.0,0.0010518]
[1765971721729,0.01078133,87052.0,87049.0,0.0010518]
[1765971721927,0.2907,87050.0,87049.0,0.0010518]
[1765971722166,0.30148133,87050.0,87049.0,0.0010518]
[1765971722358,0.30148133,87050.0,87049.0,0.0020518]
[1765971722532,0.30148133,87050.0,87049.0,0.0010518]
[1765971722684,0.30148133,87050.0,87049.0,5.18e-05]
[1765971722884,0.30148133,87050.0,87049.0,0.0010518]
[1765971723096,0.01078133,87050.0,87049.0,5.18e-05]
[1765971723484,0.01078133,87050.0,87049.0,0.0010518]
[1765971723735,0.01078133,87058.0,87049.0,0.0020518]
[1765971723935,0.01078133,87057.0,87049.0,0.0020518]
[1765971724140,0.2907,87053.0,87049.0,0.0020518]
[1765971724296,0.04072397,87058.0,87049.0,0.0020518]
[1765971724297,0.01078133,87052.0,87049.0,0.0020518]
[1765971724495,0.33525248,87060.0,87049.0,0.0020518]
[1765971724496,0.01078133,87051.0,87049.0,0.0020518]
[1765971724743,0.2907,87059.0,87049.0,0.0010518]
[1765971724744,0.01078133,87050.0,87049.0,0.0010518]
[1765971725181,0.01567367,87058.0,87049.0,0.0010518]
[1765971725526,0.2907,87052.0,87049.0,0.0010518]
[1765971725702,0.2907,87050.0,87049.0,0.0010518]
[1765971725923,0.30148133,87050.0,87049.0,5.18e-05]
[1765971726681,0.01078133,87050.0,87049.0,0.07984467]
[1765971727342,0.2907,87050.0,87049.0,0.07984467]
[1765971727540,0.01078133,87050.0,87049.0,0.07984467]
[1765971727686,0.2907,87056.0,87049.0,0.00166467]
[1765971727886,0.2907,87052.0,87049.0,0.00166467]
[1765971728219,0.2907,87050.0,87049.0,0.00166467]
[1765971728421,0.30148133,87050.0,87049.0,0.00166467]
[1765971728989,0.30148133,87050.0,87049.0,0.00266467]
[1765971729186,0.30148133,87050.0,87049.0,0.00366467]
[1765971729495,0.01078133,87050.0,87049.0,0.00366467]
[1765971731270,0.2907,87053.0,87049.0,0.00366467]
[1765971731411,0.01078133,87052.0,87049.0,0.00366467]
[1765971731808,0.2907,87050.0,87049.0,0.00366467]
[1765971732037,0.30148133,87050.0,87049.0,0.00166467]
[1765971733046,0.01078133,87050.0,87049.0,0.00266467]
[1765971733244,0.01078133,87052.0,87049.0,0.00366467]
[1765971733566,0.01078133,87051.0,87049.0,0.00366467]
[1765971733730,0.01078133,87050.0,87049.0,0.00366467]
[1765971734117,0.30148133,87050.0,87049.0,0.00366467]
[1765971734319,0.30148133,87050.0,87049.0,0.00266467]
[1765971734667,0.30148133,87050.0,87049.0,0.00366467]
[1765971734991,0.30148133,87050.0,87049.0,0.07984467]
[1765971735187,0.01078133,87050.0,87049.0,0.08084467]
[1765971735344,0.01078133,87058.0,87049.0,0.08084467]
[1765971735554,0.2907,87056.0,87049.0,0.08084467]
[1765971735764,2.0,87057.0,87049.0,0.08084467]
[1765971735765,0.01078133,87055.0,87050.0,0.03559]
[1765971735964,0.01078133,87054.0,87050.0,0.03720287]
[1765971736205,0.01078133,87053.0,87050.0,0.03720287]
[1765971736383,0.01078133,87052.0,87050.0,0.03720287]
[1765971736578,0.01078133,87051.0,87050.0,0.06239287]
[1765971736780,0.01078236,87055.0,87051.0,0.03559]
[1765971737096,0.01078236,87054.0,87051.0,0.03559]
[1765971737267,0.01078236,87053.0,87051.0,0.03559]
[1765971737468,0.01078236,87052.0,87051.0,0.06078]
[1765971737671,0.01078236,87058.0,87051.0,0.06239287]
[1765971737946,0.2907,87056.0,87052.0,0.03559]
[1765971738155,0.01078236,87055.0,87052.0,0.03559]
[1765971739197,0.01078236,87054.0,87052.0,0.03559]
[1765971739366,0.01078236,87053.0,87052.0,0.03559]
[1765971739572,0.2907,87056.0,87052.0,0.02680287]
[1765971739758,0.01078236,87055.0,87052.0,0.02680287]
[1765971740176,0.01078236,87055.0,87053.0,0.03559]
[1765971741152,0.01078236,87054.0,87053.0,0.03559]
[1765971741602,0.01078236,87056.0,87053.0,0.03659]
[1765971741804,0.01078236,87055.0,87053.0,0.03659]
[1765971742004,0.01078236,87054.0,87053.0,0.03559]
[1765971742232,0.01078236,87054.0,87053.0,0.03659]
[1765971742436,0.01078236,87054.0,87053.0,0.03759]
[1765971742619,0.34529466,87062.0,87053.0,0.03759]
[1765971742620,0.01078236,87061.0,87053.0,0.03659]
[1765971742777,2.0,87059.0,87053.0,0.03820287]
[1765971742977,0.2907,87056.0,87053.0,0.03820287]
[1765971743314,0.01078236,87055.0,87053.0,0.03820287]
[1765971743971,0.01078236,87055.0,87053.0,0.00261287]
[1765971744177,0.01078236,87054.0,87053.0,0.00161287]
[1765971744442,0.00949158,87054.0,87053.0,0.00261287]
[1765971744627,0.01078236,87058.0,87053.0,0.00261287]
[1765971744826,0.2907,87056.0,87053.0,0.00261287]
[1765971745162,0.01078236,87055.0,87053.0,0.00261287]
[1765971745840,0.01018236,87055.0,87053.0,0.00261287]
[1765971746069,0.2907,87060.0,87053.0,0.00261287]
[1765971746354,2.0,87059.0,87053.0,0.00261287]
[1765971746928,2.0,87059.0,87053.0,0.00161287]
[1765971747461,0.2907,87055.0,87053.0,0.00161287]
[1765971747704,2.0,87058.0,87053.0,0.00161287]
[1765971747889,0.2907,87055.0,87053.0,0.00161287]
[1765971748896,0.2907,87063.0,87053.0,0.00161287]
[1765971749138,0.2907,87061.0,87053.0,0.00161287]
[1765971749352,0.2907,87057.0,87053.0,0.00161287]
[1765971749554,0.2907,87055.0,87053.0,0.00161287]
[1765971750518,0.2907,87055.0,87053.0,0.00261287]
[1765971752411,0.2907,87060.0,87053.0,0.00261287]
[1765971752765,2.0,87059.0,87053.0,0.00261287]
[1765971753731,2.0,87059.0,87053.0,0.00161287]
[1765971756489,2.0,87059.0,87054.0,0.024687]
[1765971756713,2.0,87059.0,87055.0,0.024687]
[1765971756975,2.0,87059.0,87056.0,0.02468616]
[1765971757153,2.0,87059.0,87053.0,0.00161287]
[1765971757355,2.0,87059.0,87054.0,0.02468624]
[1765971757578,2.0,87059.0,87055.0,0.02468624]
[1765971757791,2.0,87059.0,87056.0,0.02468624]
[1765971757979,0.2907,87056.0,87053.0,0.00161287]
[1765971758264,0.01078989,87055.0,87054.0,0.02468579]
[1765971758840,0.2907,87060.0,87054.0,0.02468579]
[1765971759043,0.2907,87057.0,87055.0,0.02468579]
[1765971759248,0.2907,87055.0,87053.0,0.00161287]
[1765971759566,0.01078989,87054.0,87053.0,0.00161287]
[1765971759730,0.01078989,87054.0,87053.0,0.0263003]
[1765971760588,0.01078989,87059.0,87053.0,0.0263003]
[1765971760730,0.2907,87055.0,87054.0,0.02468743]
[1765971760938,0.30148989,87055.0,87054.0,0.02568743]
[1765971761165,0.30148989,87055.0,87054.0,0.02468743]
[1765971761727,0.01078989,87055.0,87054.0,0.02468743]
[1765971762129,0.01078989,87060.0,87054.0,0.02568743]
[1765971762329,0.2907,87057.0,87055.0,0.02468743]
[1765971762609,0.01078989,87056.0,87054.0,0.001]
[1765971762801,0.01078989,87056.0,87055.0,0.02468604]
[1765971763282,0.01078989,87056.0,87055.0,0.02629891]
[1765971763880,0.01078989,87064.0,87055.0,0.02629891]
[1765971764090,0.2907,87062.0,87056.0,0.02468604]
[1765971764292,2.0,87059.0,87057.0,0.02468604]
[1765971764505,0.58520014,87070.0,87057.0,0.02468604]
[1765971764506,0.01078989,87058.0,87057.0,0.00161287]
[1765971764636,0.01078989,87058.0,87057.0,0.02629933]
[1765971764845,2.0,87069.0,87057.0,0.02629933]
[1765971765046,2.0,87065.0,87058.0,0.02468509]
[1765971765308,2.0,87065.0,87059.0,0.02468509]
[1765971765309,0.2907,87062.0,87059.0,0.02468509]
[1765971765464,2.0,87059.0,87057.0,0.00161287]
[1765971765666,0.01078989,87058.0,87057.0,0.00161287]
[1765971766001,2.0,87058.0,87057.0,0.02629003]
[1765971766205,0.01078989,87058.0,87057.0,0.02629003]
[1765971766426,0.001,87069.0,87059.0,0.035]
[1765971766554,0.001,87069.0,87061.0,0.01794]
[1765971766555,0.2907,87067.0,87061.0,0.01794]
[1765971766757,0.0107844,87066.0,87062.0,0.02467716]
[1765971766975,0.0107844,87065.0,87064.0,0.05806]
[1765971767197,0.001,87069.0,87068.0,0.02306]
[1765971767198,0.01178399,87069.0,87068.0,0.02306]
[1765971767402,0.01078391,87069.0,87068.0,0.08271584]
[1765971767578,0.03075062,87073.0,87072.0,0.05294]
[1765971767808,0.01077892,87073.0,87072.0,0.07759584]
[1765971768212,0.2907,87076.0,87072.0,0.04259584]
[1765971768554,0.01077892,87075.0,87073.0,0.04281584]
[1765971768761,0.2907,87076.0,87074.0,0.04771584]
[1765971768914,0.2907,87076.0,87074.0,0.02306]
[1765971769286,0.001,87076.0,87074.0,0.02306]
[1765971769917,0.001,87076.0,87073.0,0.01816]
[1765971770109,0.001,87076.0,87073.0,0.01716]
[1765971770874,0.002,87076.0,87074.0,0.03442]
[1765971771048,0.001,87076.0,87075.0,0.05781]
[1765971771664,0.002,87076.0,87075.0,0.05781]
[1765971771869,0.002,87076.0,87073.0,0.01716]
[1765971772029,0.001,87076.0,87073.0,0.01716]
[1765971772436,0.002,87076.0,87073.0,0.01716]
[1765971772861,0.001,87076.0,87073.0,0.01716]
[1765971773066,0.002,87076.0,87073.0,0.01716]
[1765971773439,0.001,87076.0,87073.0,0.01716]
[1765971774041,0.002,87076.0,87073.0,0.01716]
[1765971778754,2.0,87086.0,87073.0,0.01877287]
[1765971778999,2.0,87084.0,87073.0,0.01877287]
[1765971779300,2.0,87087.0,87073.0,0.01877287]
[1765971780372,2.0,87083.0,87073.0,0.01877287]
[1765971780769,2.0,87082.0,87073.0,0.01877287]
[1765971780974,2.0,87082.0,87069.0,0.03453342]
[1765971781316,2.0,87082.0,87070.0,0.08877987]
[1765971781492,2.0,87082.0,87070.0,0.06419787]
[1765971782535,2.0,87081.0,87070.0,0.06419787]
[1765971784119,2.0,87081.0,87070.0,0.04603787]
[1765971784333,0.001,87081.0,87071.0,0.01816]
[1765971784548,2.0,87080.0,87071.0,0.01816]
[1765971785833,2.0,87079.0,87071.0,0.01816]
[1765971786719,2.0,87082.0,87071.0,0.01816]
[1765971786938,0.001,87079.0,87071.0,0.01816]
[1765971787394,0.001,87079.0,87071.0,0.01977287]
[1765971787862,0.001,87079.0,87072.0,0.02459014]
[1765971788072,0.001,87079.0,87071.0,0.03745287]
[1765971788300,0.002,87079.0,87072.0,0.02459013]
[1765971788560,0.002,87079.0,87071.0,0.03745287]
[1765971788784,0.33520014,87081.0,87072.0,0.02459354]
[1765971789047,2.0,87080.0,87071.0,0.03745287]
[1765971789265,0.002,87079.0,87071.0,0.03745287]
[1765971789467,0.002,87079.0,87072.0,0.02459834]
[1765971789644,0.001,87079.0,87071.0,0.03745287]
[1765971789847,0.001,87079.0,87072.0,0.02459834]
[1765971790048,0.001,87079.0,87071.0,0.03745287]
[1765971790261,0.001,87079.0,87072.0,0.02459834]
[1765971790460,0.001,87079.0,87073.0,0.02459834]
[1765971790660,0.33520014,87081.0,87071.0,0.03745287]
[1765971790861,2.0,87080.0,87072.0,0.02460419]
[1765971791115,2.0,87080.0,87073.0,0.02460419]
[1765971791326,2.0,87080.0,87071.0,0.03745287]
[1765971791532,0.001,87079.0,87072.0,0.02461159]
[1765971791742,0.001,87079.0,87073.0,0.02461159]
[1765971791951,0.001,87079.0,87071.0,0.03745287]
[1765971792171,0.001,87079.0,87072.0,0.02461146]
[1765971792439,0.001,87079.0,87073.0,0.02461146]
[1765971792628,0.001,87079.0,87074.0,0.02461146]
[1765971792911,2.0,87079.0,87071.0,0.03745287]
[1765971793060,2.0,87079.0,87072.0,0.02461936]
[1765971793271,0.001,87079.0,87073.0,0.02461936]
[1765971793513,2.0,87079.0,87074.0,0.02461936]
[1765971793713,0.001,87079.0,87075.0,0.02461936]
[1765971793922,0.01276846,87079.0,87071.0,0.03745287]
[1765971794185,0.002,87079.0,87072.0,0.02462804]
[1765971794316,0.001,87079.0,87073.0,0.02462804]
[1765971794525,0.001,87079.0,87074.0,0.02462804]
[1765971794747,0.002,87079.0,87075.0,0.02462804]
[1765971794949,0.002,87079.0,87076.0,0.02462804]
[1765971795152,0.01076873,87083.0,87077.0,0.02462804]
[1765971795356,0.001,87079.0,87078.0,0.02464703]
[1765971795549,0.002,87079.0,87078.0,0.02464703]
[1765971795774,0.001,87079.0,87078.0,0.02464703]
[1765971795951,0.01276873,87079.0,87078.0,0.02464703]
[1765971796304,0.001,87079.0,87078.0,0.02469883]
[1765971796738,0.002,87079.0,87078.0,0.02469883]
[1765971796953,0.001,87079.0,87078.0,0.02469883]
[1765971798045,0.002,87079.0,87078.0,0.02469883]
[1765971798696,0.01276873,87079.0,87078.0,0.02469883]
[1765971798882,0.002,87079.0,87078.0,0.02469883]
[1765971800121,0.01276873,87079.0,87078.0,0.02469883]
[1765971800355,0.002,87079.0,87078.0,0.02469883]
[1765971801815,0.01276873,87079.0,87078.0,0.02469883]
[1765971802286,0.002,87079.0,87078.0,0.02469883]
[1765971811368,0.01276873,87079.0,87078.0,0.02469883]
[1765971811500,0.002,87079.0,87078.0,0.02469883]
[1765971812142,0.00136,87079.0,87078.0,0.02469883]
[1765971812802,0.01212873,87079.0,87078.0,0.02469883]
[1765971813114,0.00136,87079.0,87078.0,0.02469883]
[1765971814243,0.01212873,87079.0,87078.0,0.02469883]
[1765971814451,0.00136,87079.0,87078.0,0.02469883]
[1765971815877,0.01212873,87079.0,87078.0,0.02469883]
[1765971816290,0.00136,87079.0,87078.0,0.02469883]
[1765971818857,0.01212873,87079.0,87078.0,0.02469883]
[1765971819291,0.00136,87079.0,87078.0,0.02469883]
[1765971823027,2.0,87086.0,87078.0,0.02469883]
[1765971823237,2.0,87086.0,87079.0,0.02464703]
[1765971823443,2.0,87086.0,87080.0,0.02464703]
[1765971823650,2.0,87086.0,87081.0,0.02464703]
[1765971823832,2.0,87086.0,87078.0,5.18e-05]
[1765971824031,2.0,87086.0,87079.0,0.02469221]
[1765971824233,2.001,87086.0,87080.0,0.02469221]
[1765971824450,2.0,87085.0,87081.0,0.02469221]
[1765971824657,2.0,87086.0,87078.0,5.18e-05]
[1765971824859,2.0,87085.0,87079.0,0.02469154]
[1765971825088,0.2907,87082.0,87080.0,0.02469154]
[1765971825295,0.2907,87082.0,87078.0,5.18e-05]
[1765971825296,2.2907,87079.0,87078.0,5.18e-05]
[1765971825511,0.2907,87079.0,87078.0,5.18e-05]
[1765971825717,0.2907,87079.0,87078.0,0.02474732]
[1765971826561,0.2917,87079.0,87078.0,0.02474732]
[1765971827803,0.2927,87079.0,87078.0,0.02474732]
[1765971831881,0.2907,87074.0,87064.0,0.03075062]
[1765971832036,0.2907,87072.0,87064.0,5.2e-05]
[1765971832242,2.0,87071.0,87064.0,5.2e-05]
[1765971832909,0.2907,87068.0,87064.0,5.2e-05]
[1765971833107,0.2907,87066.0,87064.0,5.2e-05]
[1765971833308,2.2907,87065.0,87064.0,5.2e-05]
[1765971834863,2.2907,87065.0,87064.0,0.001052]
[1765971835165,2.30147803,87065.0,87064.0,0.001052]
[1765971836218,2.41693881,87065.0,87064.0,0.001052]
[1765971837583,2.41693881,87065.0,87064.0,5.2e-05]
[1765971838008,2.41693881,87065.0,87064.0,0.001052]
[1765971838258,2.42183115,87065.0,87064.0,2e-06]
[1765971840252,2.30637037,87065.0,87064.0,2e-06]
[1765971840657,2.30147803,87065.0,87064.0,2e-06]
[1765971843776,2.2907,87065.0,87064.0,2e-06]
[1765971844180,0.2907,87065.0,87064.0,2e-06]
[1765971844394,0.02927,87079.0,87064.0,0.05968487]
[1765971844613,2.0,87077.0,87064.0,0.06068487]
[1765971844815,0.5850703,87080.0,87064.0,0.05968487]
[1765971844816,0.2907,87074.0,87064.0,0.05968487]
[1765971845074,2.0,87073.0,87064.0,0.05968487]
[1765971845309,0.2907,87074.0,87067.0,0.03677]
[1765971845642,0.2907,87074.0,87067.0,0.03838287]
[1765971846746,0.2907,87077.0,87067.0,0.03838287]
[1765971846958,0.2917,87077.0,87067.0,0.03838287]
[1765971847351,0.2907,87077.0,87067.0,0.03838287]
[1765971847769,0.001,87074.0,87067.0,0.03838287]
[1765971848219,0.2907,87079.0,87067.0,0.03838287]
[1765971848428,0.2907,87077.0,87067.0,0.03838287]
[1765971849060,0.2917,87077.0,87067.0,0.03838287]
[1765971850090,0.001,87077.0,87067.0,0.03838287]
[1765971859171,0.001,87077.0,87067.0,0.00161287]
[1765971865410,0.001,87077.0,87067.0,0.03838287]
[1765971866810,0.001,87077.0,87067.0,0.03811162]
[1765971867216,2.0,87078.0,87067.0,0.03811162]
[1765971867416,2.0,87079.0,87067.0,0.03811162]